[Event "Titled Tuesday Blitz June 22 2021"]
[White "Sarana, Alexey"]
[Black "Izoria, Zviad"]
[WhiteFideId "24133795"]
[BlackFideId "13601733"]
[WhiteElo "2629"]
[BlackElo "2626"]
[Result "1/2-1/2"]
[Round "09"]
[TimeControl "180+1"]
[Date "2021.06.22"]
[WhiteClock "0:00:04"]
[BlackClock "0:00:08"]

1. e4 {[%clk 0:03:00]}  c6 {[%clk 0:02:54]} 2. Nf3 {[%clk 0:02:53]}  d5 {[%clk 0:02:55]} 3. Nc3 {[%clk 0:02:53]}  a6 {[%clk 0:02:52]} 4. h3 {[%clk 0:02:50]}  e6 {[%clk 0:02:52]} 5. d4 {[%clk 0:02:49]}  Nf6 {[%clk 0:02:51]} 6. e5 {[%clk 0:02:49]}  Nfd7 {[%clk 0:02:52]} 7. Ne2 {[%clk 0:02:46]}  c5 {[%clk 0:02:32]} 8. c3 {[%clk 0:02:46]}  Nc6 {[%clk 0:02:21]} 9. Nf4 {[%clk 0:02:45]}  cxd4 {[%clk 0:02:20]} 10. cxd4 {[%clk 0:02:45]}  Bb4+ {[%clk 0:02:20]} 11. Bd2 {[%clk 0:02:45]}  Qa5 {[%clk 0:02:19]} 12. a3 {[%clk 0:02:43]}  Bxd2+ {[%clk 0:02:19]} 13. Qxd2 {[%clk 0:02:44]}  Qxd2+ {[%clk 0:02:19]} 14. Kxd2 {[%clk 0:02:45]}  Ke7 {[%clk 0:02:15]} 15. Rc1 {[%clk 0:02:44]}  f6 {[%clk 0:02:12]} 16. exf6+ {[%clk 0:02:44]}  gxf6 {[%clk 0:02:13]} 17. Bd3 {[%clk 0:02:42]}  Kd6 {[%clk 0:02:09]} 18. Bb1 {[%clk 0:02:17]}  e5 {[%clk 0:01:59]} 19. Ne2 {[%clk 0:02:16]}  Nb6 {[%clk 0:01:54]} 20. Ba2 {[%clk 0:02:13]}  Rg8 {[%clk 0:01:44]} 21. g4 {[%clk 0:02:13]}  e4 {[%clk 0:01:37]} 22. Nh4 {[%clk 0:02:11]}  f5 {[%clk 0:01:36]} 23. gxf5 {[%clk 0:02:09]}  Rf8 {[%clk 0:01:22]} 24. Ng3 {[%clk 0:01:56]}  Nxd4 {[%clk 0:01:20]} 25. Rhd1 {[%clk 0:01:54]}  Nxf5 {[%clk 0:01:14]} 26. Nhxf5+ {[%clk 0:01:49]}  Bxf5 {[%clk 0:01:15]} 27. Ke3 {[%clk 0:01:50]}  Bg6 {[%clk 0:01:04]} 28. Ke2 {[%clk 0:01:23]}  Rf4 {[%clk 0:00:49]} 29. Ke1 {[%clk 0:01:05]}  Raf8 {[%clk 0:00:47]} 30. Rd2 {[%clk 0:01:04]}  e3 {[%clk 0:00:36]} 31. fxe3 {[%clk 0:01:05]}  Rf3 {[%clk 0:00:37]} 32. Rg2 {[%clk 0:01:01]}  Rxe3+ {[%clk 0:00:37]} 33. Kd2 {[%clk 0:01:01]}  Rd3+ {[%clk 0:00:32]} 34. Ke1 {[%clk 0:01:01]}  Rff3 {[%clk 0:00:26]} 35. Ne2 {[%clk 0:00:49]}  Rxh3 {[%clk 0:00:26]} 36. Ng1 {[%clk 0:00:32]}  Rhg3 {[%clk 0:00:25]} 37. Rxg3 {[%clk 0:00:32]}  Rxg3 {[%clk 0:00:26]} 38. Kf2 {[%clk 0:00:33]}  Rd3 {[%clk 0:00:25]} 39. Ke2 {[%clk 0:00:30]}  Rg3 {[%clk 0:00:24]} 40. Kf2 {[%clk 0:00:30]}  Rd3 {[%clk 0:00:25]} 41. Ke2 {[%clk 0:00:31]}  Be4 {[%clk 0:00:25]} 42. Rf1 {[%clk 0:00:29]}  Rg3 {[%clk 0:00:24]} 43. Rf6+ {[%clk 0:00:24]}  Kc7 {[%clk 0:00:21]} 44. Kf1 {[%clk 0:00:21]}  Rg2 {[%clk 0:00:20]} 45. Ne2 {[%clk 0:00:21]}  Rh2 {[%clk 0:00:20]} 46. Rf7+ {[%clk 0:00:18]}  Kb8 {[%clk 0:00:19]} 47. Ke1 {[%clk 0:00:16]}  Nc4 {[%clk 0:00:19]} 48. Nc3 {[%clk 0:00:10]}  Bg6 {[%clk 0:00:11]} 49. Rf8+ {[%clk 0:00:09]}  Ka7 {[%clk 0:00:11]} 50. Nxd5 {[%clk 0:00:10]}  Nb6 {[%clk 0:00:10]} 51. Ne7 {[%clk 0:00:05]}  Rxb2 {[%clk 0:00:09]} 52. Bd5 {[%clk 0:00:05]}  Rc2 {[%clk 0:00:06]} 53. Bf3 {[%clk 0:00:04]}  Rc7 {[%clk 0:00:06]} 54. Nf5 {[%clk 0:00:03]}  Bxf5 {[%clk 0:00:05]} 55. Rxf5 {[%clk 0:00:04]}  Nc4 {[%clk 0:00:06]} 56. a4 {[%clk 0:00:03]}  Nb2 {[%clk 0:00:05]} 57. a5 {[%clk 0:00:03]}  Nd3+ {[%clk 0:00:05]} 58. Kd2 {[%clk 0:00:03]}  Nc5 {[%clk 0:00:06]} 59. Rh5 {[%clk 0:00:03]}  Re7 {[%clk 0:00:06]} 60. Bh1 {[%clk 0:00:02]}  Nd7 {[%clk 0:00:05]} 61. Kd3 {[%clk 0:00:02]}  Nb8 {[%clk 0:00:06]} 62. Kc4 {[%clk 0:00:02]}  Nc6 {[%clk 0:00:06]} 63. Bxc6 {[%clk 0:00:01]}  bxc6 {[%clk 0:00:06]} 64. Kc5 {[%clk 0:00:02]}  Kb7 {[%clk 0:00:07]} 65. Rh6 {[%clk 0:00:03]}  Rd7 {[%clk 0:00:07]} 66. Rh4 {[%clk 0:00:03]}  Kc7 {[%clk 0:00:07]} 67. Rh6 {[%clk 0:00:03]}  Rd5+ {[%clk 0:00:07]} 68. Kc4 {[%clk 0:00:03]}  Rd7 {[%clk 0:00:08]} 69. Rh4 {[%clk 0:00:03]}  Kb7 {[%clk 0:00:09]} 70. Rh6 {[%clk 0:00:03]}  Kc7 {[%clk 0:00:08]} 71. Kc5 {[%clk 0:00:04]}  Rd5+ {[%clk 0:00:09]} 72. Kb4 {[%clk 0:00:04]}  Rd7 {[%clk 0:00:08]} 73. Kc5 {[%clk 0:00:04]} 1/2-1/2


[Site "https://www.chess.com"]

[Event "Titled Tuesday Blitz June 22 2021"]
[White "Srihari L R"]
[Black "Donchenko, Alexander"]
[WhiteFideId "46617116"]
[BlackFideId "24603295"]
[WhiteElo "2121"]
[BlackElo "2553"]
[Result "1/2-1/2"]
[Round "09"]
[TimeControl "180+1"]
[Date "2021.06.22"]
[WhiteClock "0:00:08"]
[BlackClock "0:00:22"]

1. c4 {[%clk 0:02:48]}  Nf6 {[%clk 0:02:58]} 2. Nc3 {[%clk 0:02:48]}  e5 {[%clk 0:02:58]} 3. Nf3 {[%clk 0:02:46]}  Nc6 {[%clk 0:02:59]} 4. d3 {[%clk 0:02:45]}  Bb4 {[%clk 0:02:56]} 5. g3 {[%clk 0:02:44]}  O-O {[%clk 0:02:56]} 6. Bg2 {[%clk 0:02:43]}  d6 {[%clk 0:02:55]} 7. O-O {[%clk 0:02:43]}  Bxc3 {[%clk 0:02:55]} 8. bxc3 {[%clk 0:02:42]}  Re8 {[%clk 0:02:54]} 9. e4 {[%clk 0:02:42]}  h6 {[%clk 0:02:52]} 10. Rb1 {[%clk 0:02:41]}  b6 {[%clk 0:02:51]} 11. Nh4 {[%clk 0:02:38]}  Bg4 {[%clk 0:02:37]} 12. Qc2 {[%clk 0:02:30]}  Qc8 {[%clk 0:02:34]} 13. Nf5 {[%clk 0:02:25]}  Rb8 {[%clk 0:02:25]} 14. Ne3 {[%clk 0:02:24]}  Bh3 {[%clk 0:02:23]} 15. f4 {[%clk 0:02:22]}  Bxg2 {[%clk 0:02:12]} 16. Qxg2 {[%clk 0:02:21]}  Ng4 {[%clk 0:02:09]} 17. f5 {[%clk 0:02:14]}  Nxe3 {[%clk 0:02:06]} 18. Bxe3 {[%clk 0:02:15]}  f6 {[%clk 0:01:42]} 19. g4 {[%clk 0:02:14]}  Kf7 {[%clk 0:01:43]} 20. h4 {[%clk 0:02:13]}  Rh8 {[%clk 0:01:42]} 21. Kf2 {[%clk 0:02:07]}  Qa6 {[%clk 0:01:41]} 22. Kf3 {[%clk 0:02:06]}  Qa3 {[%clk 0:01:37]} 23. Rb3 {[%clk 0:02:05]}  Qa5 {[%clk 0:01:34]} 24. Qb2 {[%clk 0:01:50]}  Qa6 {[%clk 0:01:28]} 25. Rg1 {[%clk 0:01:33]}  Na5 {[%clk 0:01:27]} 26. Rb4 {[%clk 0:01:29]}  c5 {[%clk 0:01:26]} 27. Rb5 {[%clk 0:01:28]}  Qb7 {[%clk 0:01:20]} 28. Qg2 {[%clk 0:01:19]}  a6 {[%clk 0:01:18]} 29. Rbb1 {[%clk 0:01:18]}  Nc6 {[%clk 0:01:11]} 30. a4 {[%clk 0:01:15]}  Qd7 {[%clk 0:01:06]} 31. Rh1 {[%clk 0:01:12]}  Ne7 {[%clk 0:01:05]} 32. Ra1 {[%clk 0:01:09]}  b5 {[%clk 0:01:02]} 33. axb5 {[%clk 0:01:05]}  axb5 {[%clk 0:01:03]} 34. cxb5 {[%clk 0:01:00]}  Rxb5 {[%clk 0:01:02]} 35. Qa2+ {[%clk 0:00:54]}  d5 {[%clk 0:01:00]} 36. exd5 {[%clk 0:00:50]}  Qd6 {[%clk 0:00:54]} 37. c4 {[%clk 0:00:47]}  Rb6 {[%clk 0:00:52]} 38. Rhb1 {[%clk 0:00:40]}  h5 {[%clk 0:00:45]} 39. Rxb6 {[%clk 0:00:32]}  hxg4+ {[%clk 0:00:45]} 40. Kxg4 {[%clk 0:00:31]}  Qxb6 {[%clk 0:00:46]} 41. Rb1 {[%clk 0:00:26]}  Qd6 {[%clk 0:00:43]} 42. Qa7 {[%clk 0:00:24]}  e4 {[%clk 0:00:41]} 43. Bxc5 {[%clk 0:00:14]}  Rxh4+ {[%clk 0:00:30]} 44. Kxh4 {[%clk 0:00:14]}  Qh2+ {[%clk 0:00:31]} 45. Kg4 {[%clk 0:00:14]}  Qg2+ {[%clk 0:00:30]} 46. Kh4 {[%clk 0:00:08]}  Qh2+ {[%clk 0:00:21]} 47. Kg4 {[%clk 0:00:08]}  Qg2+ {[%clk 0:00:22]} 48. Kh4 {[%clk 0:00:08]}  Qh2+ {[%clk 0:00:22]} 1/2-1/2


[Site "https://www.chess.com"]

[Event "Titled Tuesday Blitz June 22 2021"]
[White "Timmermans, Mark"]
[Black "Jones, Gawain C B"]
[WhiteFideId "1026399"]
[BlackFideId "409561"]
[WhiteElo "2460"]
[BlackElo "2657"]
[Result "1-0"]
[Round "09"]
[TimeControl "180+1"]
[Date "2021.06.22"]
[WhiteClock "0:00:28"]
[BlackClock "0:00:01"]

1. b4 {[%clk 0:03:00]}  f6 {[%clk 0:02:41]} 2. Bb2 {[%clk 0:02:59]}  e5 {[%clk 0:02:39]} 3. e4 {[%clk 0:02:59]}  Bxb4 {[%clk 0:02:38]} 4. Bc4 {[%clk 0:02:58]}  Ne7 {[%clk 0:02:31]} 5. Qh5+ {[%clk 0:02:58]}  Ng6 {[%clk 0:02:29]} 6. f4 {[%clk 0:02:57]}  d5 {[%clk 0:02:23]} 7. Bxd5 {[%clk 0:02:36]}  exf4 {[%clk 0:02:22]} 8. Nf3 {[%clk 0:02:27]}  c6 {[%clk 0:02:20]} 9. Bb3 {[%clk 0:02:26]}  Na6 {[%clk 0:02:15]} 10. Nh4 {[%clk 0:02:14]}  Qa5 {[%clk 0:01:57]} 11. e5 {[%clk 0:01:56]}  Kd8 {[%clk 0:00:51]} 12. Nxg6 {[%clk 0:01:53]}  Re8 {[%clk 0:00:52]} 13. Qxh7 {[%clk 0:01:53]}  Bf5 {[%clk 0:00:28]} 14. Qxg7 {[%clk 0:01:47]}  Bxg6 {[%clk 0:00:28]} 15. Qxg6 {[%clk 0:01:47]}  Kc7 {[%clk 0:00:28]} 16. Qxf6 {[%clk 0:01:43]}  Rad8 {[%clk 0:00:19]} 17. Qxf4 {[%clk 0:01:25]}  Rf8 {[%clk 0:00:11]} 18. Qh6 {[%clk 0:01:14]}  Bc5 {[%clk 0:00:06]} 19. e6 {[%clk 0:00:42]}  Bf2+ {[%clk 0:00:05]} 20. Kd1 {[%clk 0:00:42]}  Rde8 {[%clk 0:00:03]} 21. Na3 {[%clk 0:00:38]}  Nc5 {[%clk 0:00:03]} 22. Be5+ {[%clk 0:00:33]}  Kc8 {[%clk 0:00:03]} 23. Nc4 {[%clk 0:00:32]}  Qd8 {[%clk 0:00:02]} 24. Nd6+ {[%clk 0:00:32]}  Kb8 {[%clk 0:00:02]} 25. Nf7+ {[%clk 0:00:33]}  Ka8 {[%clk 0:00:02]} 26. Nxd8 {[%clk 0:00:32]}  Ne4 {[%clk 0:00:01]} 27. e7 {[%clk 0:00:28]}  Rxe7 {[%clk 0:00:01]} 28. Qxf8 {[%clk 0:00:28]}  Nc3+ {[%clk 0:00:01]} 29. dxc3 {[%clk 0:00:28]} 1-0


[Site "https://www.chess.com"]

[Event "Titled Tuesday Blitz June 22 2021"]
[White "Vasli, Aref"]
[Black "Le, Tuan Minh"]
[WhiteFideId "417521"]
[BlackFideId "12401153"]
[WhiteElo "2257"]
[BlackElo "2450"]
[Result "0-1"]
[Round "09"]
[TimeControl "180+1"]
[Date "2021.06.22"]
[WhiteClock "0:00:02"]
[BlackClock "0:00:13"]

1. e4 {[%clk 0:02:53]}  c5 {[%clk 0:02:59]} 2. Nf3 {[%clk 0:02:53]}  Nf6 {[%clk 0:02:59]} 3. e5 {[%clk 0:02:51]}  Nd5 {[%clk 0:02:59]} 4. Nc3 {[%clk 0:02:51]}  e6 {[%clk 0:03:00]} 5. d4 {[%clk 0:02:43]}  Nc6 {[%clk 0:02:59]} 6. Bb5 {[%clk 0:02:30]}  cxd4 {[%clk 0:02:31]} 7. Nxd5 {[%clk 0:02:25]}  exd5 {[%clk 0:02:32]} 8. O-O {[%clk 0:02:17]}  Bc5 {[%clk 0:02:32]} 9. Bg5 {[%clk 0:02:09]}  Qb6 {[%clk 0:02:31]} 10. Bd3 {[%clk 0:02:01]}  O-O {[%clk 0:02:30]} 11. a3 {[%clk 0:01:50]}  a5 {[%clk 0:02:25]} 12. Rb1 {[%clk 0:01:39]}  d6 {[%clk 0:02:20]} 13. b4 {[%clk 0:01:16]}  axb4 {[%clk 0:02:21]} 14. axb4 {[%clk 0:01:16]}  Nxb4 {[%clk 0:02:21]} 15. Be7 {[%clk 0:00:21]}  Re8 {[%clk 0:02:20]} 16. exd6 {[%clk 0:00:20]}  Bxd6 {[%clk 0:02:18]} 17. Bxd6 {[%clk 0:00:18]}  Qxd6 {[%clk 0:02:19]} 18. Nxd4 {[%clk 0:00:19]}  Nc6 {[%clk 0:02:15]} 19. Bb5 {[%clk 0:00:17]}  Re4 {[%clk 0:02:09]} 20. Nxc6 {[%clk 0:00:15]}  bxc6 {[%clk 0:02:09]} 21. Bd3 {[%clk 0:00:15]}  Re8 {[%clk 0:02:07]} 22. Qh5 {[%clk 0:00:14]}  g6 {[%clk 0:02:04]} 23. Qh4 {[%clk 0:00:15]}  c5 {[%clk 0:01:57]} 24. Rfd1 {[%clk 0:00:12]}  Bd7 {[%clk 0:01:55]} 25. h3 {[%clk 0:00:12]}  Bc6 {[%clk 0:01:55]} 26. Bf1 {[%clk 0:00:11]}  d4 {[%clk 0:01:54]} 27. c3 {[%clk 0:00:10]}  Re4 {[%clk 0:01:51]} 28. Qg5 {[%clk 0:00:10]}  Rd8 {[%clk 0:01:28]} 29. cxd4 {[%clk 0:00:09]}  Rxd4 {[%clk 0:01:21]} 30. Rdc1 {[%clk 0:00:10]}  Rd5 {[%clk 0:01:19]} 31. Qh4 {[%clk 0:00:10]}  Rf5 {[%clk 0:00:54]} 32. Rb6 {[%clk 0:00:10]}  Rc8 {[%clk 0:00:47]} 33. Ba6 {[%clk 0:00:08]}  Rc7 {[%clk 0:00:43]} 34. Rb8+ {[%clk 0:00:05]}  Kg7 {[%clk 0:00:44]} 35. Rd8 {[%clk 0:00:06]}  Qe5 {[%clk 0:00:39]} 36. Bf1 {[%clk 0:00:06]}  Bd5 {[%clk 0:00:22]} 37. Rd1 {[%clk 0:00:05]}  Be6 {[%clk 0:00:22]} 38. Re8 {[%clk 0:00:05]}  Qf6 {[%clk 0:00:19]} 39. Qa4 {[%clk 0:00:04]}  Rc8 {[%clk 0:00:15]} 40. Rxc8 {[%clk 0:00:04]}  Bxc8 {[%clk 0:00:16]} 41. Qa8 {[%clk 0:00:04]}  Be6 {[%clk 0:00:15]} 42. Qb8 {[%clk 0:00:04]}  Qe5 {[%clk 0:00:15]} 43. Qb6 {[%clk 0:00:03]}  Qf4 {[%clk 0:00:13]} 44. Rd8 {[%clk 0:00:03]}  Qxf2+ {[%clk 0:00:13]} 45. Kh2 {[%clk 0:00:02]}  Qf4+ {[%clk 0:00:13]} 46. Kg1 {[%clk 0:00:02]}  Qxf1+ {[%clk 0:00:13]} 0-1


[Site "https://www.chess.com"]

[Event "Titled Tuesday Blitz June 22 2021"]
[White "Visakh N R"]
[Black "Zubov, Alexander"]
[WhiteFideId "25012223"]
[BlackFideId "14109409"]
[WhiteElo "2428"]
[BlackElo "2740"]
[Result "1-0"]
[Round "09"]
[TimeControl "180+1"]
[Date "2021.06.22"]
[WhiteClock "0:00:27"]
[BlackClock "0:00:03"]

1. e4 {[%clk 0:03:00]}  e5 {[%clk 0:02:58]} 2. Nf3 {[%clk 0:03:01]}  Nc6 {[%clk 0:02:59]} 3. Bb5 {[%clk 0:03:01]}  Nf6 {[%clk 0:02:58]} 4. O-O {[%clk 0:03:00]}  Nxe4 {[%clk 0:02:58]} 5. Re1 {[%clk 0:03:00]}  Nd6 {[%clk 0:02:58]} 6. Nxe5 {[%clk 0:03:00]}  Be7 {[%clk 0:02:58]} 7. Bf1 {[%clk 0:02:59]}  Nf5 {[%clk 0:02:58]} 8. c3 {[%clk 0:02:49]}  Nxe5 {[%clk 0:02:56]} 9. Rxe5 {[%clk 0:02:50]}  d6 {[%clk 0:02:52]} 10. Re1 {[%clk 0:02:47]}  O-O {[%clk 0:02:50]} 11. d4 {[%clk 0:02:44]}  d5 {[%clk 0:02:49]} 12. Bf4 {[%clk 0:02:40]}  c6 {[%clk 0:02:44]} 13. Nd2 {[%clk 0:02:39]}  g5 {[%clk 0:02:32]} 14. Be5 {[%clk 0:02:36]}  f6 {[%clk 0:02:31]} 15. Bg3 {[%clk 0:02:36]}  Nxg3 {[%clk 0:02:23]} 16. hxg3 {[%clk 0:02:35]}  Bf5 {[%clk 0:02:23]} 17. Qf3 {[%clk 0:02:32]}  Bg6 {[%clk 0:02:16]} 18. Bd3 {[%clk 0:02:31]}  f5 {[%clk 0:01:56]} 19. Nf1 {[%clk 0:02:15]}  g4 {[%clk 0:01:53]} 20. Qe3 {[%clk 0:02:04]}  Bg5 {[%clk 0:01:51]} 21. f4 {[%clk 0:02:04]}  gxf3 {[%clk 0:01:43]} 22. Qxf3 {[%clk 0:02:04]}  Qd6 {[%clk 0:01:24]} 23. Re5 {[%clk 0:02:01]}  Bf6 {[%clk 0:01:23]} 24. Re2 {[%clk 0:02:00]}  Bg5 {[%clk 0:01:06]} 25. Rae1 {[%clk 0:01:58]}  Rf6 {[%clk 0:01:06]} 26. Re5 {[%clk 0:01:30]}  Raf8 {[%clk 0:01:04]} 27. Ne3 {[%clk 0:01:30]}  Qd7 {[%clk 0:00:49]} 28. Rf1 {[%clk 0:01:30]}  Kh8 {[%clk 0:00:35]} 29. Nxf5 {[%clk 0:01:28]}  R6f7 {[%clk 0:00:33]} 30. g4 {[%clk 0:01:24]}  Bf6 {[%clk 0:00:32]} 31. Re2 {[%clk 0:01:24]}  Qc7 {[%clk 0:00:30]} 32. Qf4 {[%clk 0:01:18]}  Qb6 {[%clk 0:00:18]} 33. Kh1 {[%clk 0:00:55]}  c5 {[%clk 0:00:18]} 34. Rfe1 {[%clk 0:00:32]}  cxd4 {[%clk 0:00:17]} 35. Re6 {[%clk 0:00:28]}  Qxb2 {[%clk 0:00:08]} 36. Nh6 {[%clk 0:00:28]}  Qxc3 {[%clk 0:00:06]} 37. Nxf7+ {[%clk 0:00:28]}  Rxf7 {[%clk 0:00:07]} 38. Bxg6 {[%clk 0:00:27]}  hxg6 {[%clk 0:00:03]} 39. Qh6+ {[%clk 0:00:27]} 1-0


[Site "https://www.chess.com"]

[Event "Titled Tuesday Blitz June 22 2021"]
[White "Wong, Yinn Long"]
[Black "Pichot, Alan"]
[WhiteFideId "5707684"]
[BlackFideId "110973"]
[WhiteElo "2016"]
[BlackElo "2622"]
[Result "1/2-1/2"]
[Round "09"]
[TimeControl "180+1"]
[Date "2021.06.22"]
[WhiteClock "0:00:21"]
[BlackClock "0:02:30"]

1. e4 {[%clk 0:03:00]}  c5 {[%clk 0:02:59]} 2. Nf3 {[%clk 0:03:00]}  e6 {[%clk 0:03:00]} 3. g3 {[%clk 0:03:00]}  Nc6 {[%clk 0:02:59]} 4. Bg2 {[%clk 0:03:01]}  Nf6 {[%clk 0:03:00]} 5. Qe2 {[%clk 0:03:01]}  d5 {[%clk 0:03:01]} 6. exd5 {[%clk 0:03:00]}  Nxd5 {[%clk 0:03:01]} 7. O-O {[%clk 0:03:00]}  Be7 {[%clk 0:03:02]} 8. Rd1 {[%clk 0:03:00]}  Qb6 {[%clk 0:03:03]} 9. Nc3 {[%clk 0:02:19]}  O-O {[%clk 0:03:01]} 10. d3 {[%clk 0:02:07]}  Bf6 {[%clk 0:02:55]} 11. Ne4 {[%clk 0:02:04]}  Be7 {[%clk 0:02:55]} 12. c3 {[%clk 0:01:53]}  Bd7 {[%clk 0:02:53]} 13. Ne1 {[%clk 0:01:45]}  Rad8 {[%clk 0:02:53]} 14. Nc2 {[%clk 0:01:38]}  Bc8 {[%clk 0:02:49]} 15. Ne3 {[%clk 0:01:36]}  Rfe8 {[%clk 0:02:50]} 16. Nc4 {[%clk 0:01:32]}  Qc7 {[%clk 0:02:50]} 17. f4 {[%clk 0:01:32]}  b5 {[%clk 0:02:49]} 18. Ne3 {[%clk 0:01:32]}  Bf8 {[%clk 0:02:49]} 19. a4 {[%clk 0:01:31]}  b4 {[%clk 0:02:48]} 20. Qc2 {[%clk 0:01:23]}  Ba6 {[%clk 0:02:47]} 21. Nc4 {[%clk 0:01:16]}  Na5 {[%clk 0:02:47]} 22. Nxa5 {[%clk 0:01:12]}  Qxa5 {[%clk 0:02:48]} 23. c4 {[%clk 0:01:09]}  Ne7 {[%clk 0:02:41]} 24. Be3 {[%clk 0:00:59]}  Nf5 {[%clk 0:02:41]} 25. Bf2 {[%clk 0:01:00]}  Nd4 {[%clk 0:02:42]} 26. Bxd4 {[%clk 0:01:00]}  Rxd4 {[%clk 0:02:43]} 27. Nd2 {[%clk 0:00:57]}  Qc7 {[%clk 0:02:43]} 28. Nb3 {[%clk 0:00:54]}  Rd7 {[%clk 0:02:43]} 29. Qe2 {[%clk 0:00:48]}  Red8 {[%clk 0:02:42]} 30. Rd2 {[%clk 0:00:48]}  g6 {[%clk 0:02:42]} 31. Qe3 {[%clk 0:00:47]}  Bg7 {[%clk 0:02:42]} 32. Rad1 {[%clk 0:00:47]}  Bd4 {[%clk 0:02:37]} 33. Nxd4 {[%clk 0:00:46]}  Rxd4 {[%clk 0:02:37]} 34. b3 {[%clk 0:00:45]}  Bb7 {[%clk 0:02:36]} 35. Bxb7 {[%clk 0:00:34]}  Qxb7 {[%clk 0:02:37]} 36. Re2 {[%clk 0:00:34]}  Qd7 {[%clk 0:02:36]} 37. Red2 {[%clk 0:00:33]}  Qd6 {[%clk 0:02:37]} 38. Kg2 {[%clk 0:00:32]}  h5 {[%clk 0:02:36]} 39. Qf3 {[%clk 0:00:31]}  Rd7 {[%clk 0:02:36]} 40. h4 {[%clk 0:00:29]}  Qe7 {[%clk 0:02:36]} 41. Re1 {[%clk 0:00:28]}  Qd6 {[%clk 0:02:35]} 42. Re3 {[%clk 0:00:28]}  Qc7 {[%clk 0:02:32]} 43. Qa8+ {[%clk 0:00:26]}  Kg7 {[%clk 0:02:32]} 44. Qf3 {[%clk 0:00:27]}  Qd8 {[%clk 0:02:32]} 45. Qe2 {[%clk 0:00:26]}  Qa8+ {[%clk 0:02:32]} 46. Qf3 {[%clk 0:00:26]}  Qd8 {[%clk 0:02:32]} 47. Qe2 {[%clk 0:00:27]}  Qf6 {[%clk 0:02:29]} 48. Re5 {[%clk 0:00:25]}  Qd8 {[%clk 0:02:30]} 49. Re3 {[%clk 0:00:21]} 1/2-1/2


[Site "https://www.chess.com"]

[Event "Titled Tuesday Blitz June 22 2021"]
[White "Abdusattorov, Nodirbek"]
[Black "Hess, Robert"]
[WhiteFideId "14204118"]
[BlackFideId "2022036"]
[WhiteElo "2662"]
[BlackElo "2557"]
[Result "1-0"]
[Round "10"]
[TimeControl "180+1"]
[Date "2021.06.22"]
[WhiteClock "0:00:45"]
[BlackClock "0:00:02"]

1. d4 {[%clk 0:03:00]}  d6 {[%clk 0:02:59]} 2. c4 {[%clk 0:02:59]}  g6 {[%clk 0:02:59]} 3. e4 {[%clk 0:02:59]}  Bg7 {[%clk 0:03:00]} 4. Nc3 {[%clk 0:02:59]}  e5 {[%clk 0:03:00]} 5. d5 {[%clk 0:02:59]}  f5 {[%clk 0:03:00]} 6. h4 {[%clk 0:02:52]}  Nf6 {[%clk 0:02:57]} 7. Bd3 {[%clk 0:02:51]}  f4 {[%clk 0:02:56]} 8. Bd2 {[%clk 0:02:47]}  a5 {[%clk 0:02:52]} 9. g3 {[%clk 0:02:47]}  fxg3 {[%clk 0:02:50]} 10. fxg3 {[%clk 0:02:48]}  O-O {[%clk 0:02:51]} 11. Qc2 {[%clk 0:02:46]}  Na6 {[%clk 0:02:50]} 12. a3 {[%clk 0:02:42]}  Nc5 {[%clk 0:02:46]} 13. O-O-O {[%clk 0:02:39]}  a4 {[%clk 0:02:30]} 14. Kb1 {[%clk 0:02:36]}  Ng4 {[%clk 0:02:28]} 15. Nh3 {[%clk 0:02:36]}  Nb3 {[%clk 0:02:02]} 16. Bg5 {[%clk 0:02:17]}  Qd7 {[%clk 0:01:47]} 17. Rdf1 {[%clk 0:02:16]}  h6 {[%clk 0:01:32]} 18. Rxf8+ {[%clk 0:02:15]}  Bxf8 {[%clk 0:01:32]} 19. Bc1 {[%clk 0:02:10]}  Qe7 {[%clk 0:00:46]} 20. Nf2 {[%clk 0:01:58]}  Nxf2 {[%clk 0:00:30]} 21. Qxf2 {[%clk 0:01:58]}  Nxc1 {[%clk 0:00:30]} 22. Rxc1 {[%clk 0:01:57]}  Bg7 {[%clk 0:00:27]} 23. Nb5 {[%clk 0:01:40]}  c6 {[%clk 0:00:21]} 24. dxc6 {[%clk 0:01:35]}  bxc6 {[%clk 0:00:21]} 25. Nc3 {[%clk 0:01:36]}  Be6 {[%clk 0:00:17]} 26. Qc2 {[%clk 0:01:34]}  Qa7 {[%clk 0:00:15]} 27. Rd1 {[%clk 0:01:30]}  Bf8 {[%clk 0:00:12]} 28. h5 {[%clk 0:01:29]}  g5 {[%clk 0:00:11]} 29. Rf1 {[%clk 0:01:13]}  Qe3 {[%clk 0:00:11]} 30. Nxa4 {[%clk 0:01:02]}  Rxa4 {[%clk 0:00:08]} 31. Rf6 {[%clk 0:00:55]}  Qe1+ {[%clk 0:00:02]} 32. Ka2 {[%clk 0:00:53]}  Bf7 {[%clk 0:00:02]} 33. Qxa4 {[%clk 0:00:52]}  Qxg3 {[%clk 0:00:03]} 34. Qa7 {[%clk 0:00:49]}  Bxh5 {[%clk 0:00:02]} 35. Be2 {[%clk 0:00:45]} 1-0


[Site "https://www.chess.com"]

[Event "Titled Tuesday Blitz June 22 2021"]
[White "Andreikin, Dmitry"]
[Black "Kosteniuk, Alexandra"]
[WhiteFideId "4158814"]
[BlackFideId "4128125"]
[WhiteElo "2782"]
[BlackElo "2521"]
[Result "1-0"]
[Round "10"]
[TimeControl "180+1"]
[Date "2021.06.22"]
[WhiteClock "0:00:20"]
[BlackClock "0:00:07"]

1. b3 {[%clk 0:03:00]}  Nf6 {[%clk 0:02:58]} 2. Bb2 {[%clk 0:03:01]}  b6 {[%clk 0:02:59]} 3. Nf3 {[%clk 0:02:58]}  Bb7 {[%clk 0:02:59]} 4. g3 {[%clk 0:02:58]}  e6 {[%clk 0:02:59]} 5. Bg2 {[%clk 0:02:58]}  Be7 {[%clk 0:03:00]} 6. O-O {[%clk 0:02:58]}  O-O {[%clk 0:03:00]} 7. c4 {[%clk 0:02:58]}  c5 {[%clk 0:02:59]} 8. Nc3 {[%clk 0:02:53]}  d5 {[%clk 0:02:59]} 9. cxd5 {[%clk 0:02:52]}  Nxd5 {[%clk 0:02:59]} 10. Nxd5 {[%clk 0:02:52]}  Bxd5 {[%clk 0:02:57]} 11. d4 {[%clk 0:02:52]}  cxd4 {[%clk 0:02:56]} 12. Qxd4 {[%clk 0:02:37]}  Bf6 {[%clk 0:02:55]} 13. Qd2 {[%clk 0:02:38]}  Bxb2 {[%clk 0:02:54]} 14. Qxb2 {[%clk 0:02:38]}  Nd7 {[%clk 0:02:46]} 15. Rac1 {[%clk 0:02:24]}  Nf6 {[%clk 0:02:28]} 16. Rfd1 {[%clk 0:02:21]}  Qe7 {[%clk 0:01:58]} 17. Ne5 {[%clk 0:02:18]}  Rac8 {[%clk 0:01:36]} 18. Bxd5 {[%clk 0:02:11]}  Nxd5 {[%clk 0:01:27]} 19. e4 {[%clk 0:02:01]}  Nf6 {[%clk 0:01:17]} 20. f3 {[%clk 0:01:50]}  Qb7 {[%clk 0:01:14]} 21. Qd4 {[%clk 0:01:39]}  h6 {[%clk 0:01:07]} 22. Kf2 {[%clk 0:01:36]}  Rxc1 {[%clk 0:01:03]} 23. Rxc1 {[%clk 0:01:35]}  Rc8 {[%clk 0:01:03]} 24. Rxc8+ {[%clk 0:01:29]}  Qxc8 {[%clk 0:01:03]} 25. Qc4 {[%clk 0:01:26]}  Qd8 {[%clk 0:01:01]} 26. Ke2 {[%clk 0:01:22]}  g6 {[%clk 0:00:51]} 27. b4 {[%clk 0:01:17]}  h5 {[%clk 0:00:46]} 28. a4 {[%clk 0:01:09]}  Kg7 {[%clk 0:00:44]} 29. b5 {[%clk 0:01:04]}  Qd6 {[%clk 0:00:39]} 30. Qc3 {[%clk 0:01:02]}  Qd8 {[%clk 0:00:14]} 31. Nc6 {[%clk 0:00:55]}  Qc7 {[%clk 0:00:12]} 32. Qe5 {[%clk 0:00:39]}  Qxe5 {[%clk 0:00:11]} 33. Nxe5 {[%clk 0:00:39]}  Kf8 {[%clk 0:00:10]} 34. Kd3 {[%clk 0:00:33]}  Ke8 {[%clk 0:00:10]} 35. h4 {[%clk 0:00:20]}  Nd7 {[%clk 0:00:10]} 36. Nxd7 {[%clk 0:00:21]}  Kxd7 {[%clk 0:00:10]} 37. e5 {[%clk 0:00:20]}  Ke7 {[%clk 0:00:09]} 38. Ke4 {[%clk 0:00:21]}  Kf8 {[%clk 0:00:08]} 39. Kf4 {[%clk 0:00:20]}  Kg8 {[%clk 0:00:07]} 40. Kg5 {[%clk 0:00:21]}  Kg7 {[%clk 0:00:07]} 41. g4 {[%clk 0:00:19]}  hxg4 {[%clk 0:00:07]} 42. fxg4 {[%clk 0:00:20]}  f6+ {[%clk 0:00:05]} 43. exf6+ {[%clk 0:00:20]}  Kf7 {[%clk 0:00:06]} 44. h5 {[%clk 0:00:19]}  gxh5 {[%clk 0:00:06]} 45. gxh5 {[%clk 0:00:20]}  e5 {[%clk 0:00:06]} 46. h6 {[%clk 0:00:20]}  e4 {[%clk 0:00:07]} 47. h7 {[%clk 0:00:20]}  e3 {[%clk 0:00:07]} 48. h8=Q {[%clk 0:00:20]} 1-0


[Site "https://www.chess.com"]